[Event "SixDays Budapest January IM-B 2025"]
[Site "Budapest"]
[Date "2025.01.30"]
[Round "7.4"]
[White "Vandan Alankar Sawai"]
[Black "Krizsany, Laszlo"]
[Result "0-1"]
[Annotator "TA"]
[ECO "B40"]
[WhiteElo "2177"]
[BlackElo "2303"]
[PlyCount "54"]
[EventDate "2025.01.24"]
[EventType "tourn"]
[EventCountry "HUN"]
[SourceTitle "playchess.com"]
[Source "ChessBase"]
[SourceQuality "1"]
[TimeControl "5400+30"]

{[%evp 9,54,23,77,93,87,-27,-15,-57,-50,-60,-52,-128,-124,-336,-343,-364,-368,-412,-387,-424,-430,-427,-438,-412,-347,-469,-470,-480,-476,-477,-477,-496,-501,-490,-501,-522,-511,-527,-523,-594,-600,-778,-771,-884,-867,-1306,-1279]} 1. e4 {[%emt 0:00:16][%cal Be2e4,Be4e5][%mdl 32]} c5 {[%emt 0:00:30]} 2. Nf3 {[%emt 0:00:08]} e6 {[%emt 0:00:23]} 3. d4 {[%emt 0:00:08]} cxd4 {[%emt 0:00:16]} 4. Nxd4 {[%emt 0:00:07]} Nf6 {[%emt 0:00:14]} 5. Nc3 {[%emt 0:00:08]} Qb6 {[%emt 0:00:40]} (5... Nc6 $11) 6. e5 {[%emt 0:03:58] B40: Sicilian: 2...e6, Unusual lines.} Bc5 {[%emt 0:00:39] [#]} 7. Na4 {[%emt 0:07:49]} ({White should try} 7. Ndb5 $1 $16 Nd5 (7... Bxf2+ 8. Ke2 $16) 8. Ne4 (8. Nxd5 exd5 9. Nd6+ Bxd6 $16)) 7... Qa5+ $11 {[%emt 0:02:21]} 8. c3 {[%emt 0:00:25] and Nxc5 should not be overlooked. The position is equal.} Bxd4 {[%emt 0:00:55]} 9. Qxd4 {[%emt 0:07:15]} Nc6 $1 {[%emt 0:00:14][%csl LRd4,LRe5]} 10. Qd1 {[%emt 0:00:02]} (10. Qc5 $15 Qxc5 (10... Qxa4 11. exf6 gxf6 12. Bb5 $11) 11. Nxc5 Nxe5 12. Nb3) 10... Qxe5+ $17 {[%emt 0:01:34]} 11. Be2 $146 {[%emt 0:00:02]} (11. Qe2 $17) (11. Be3 Nd5 12. Be2 Nxe3 13. fxe3 Qxe3 14. Qd6 Qe5 15. Qd3 O-O 16. O-O d5 17. Bd1 {0-1 Ladron De Guevara Mendez,L (1319)-Marinozzi,N Rio Grande Domingo op 20th blitz 2020 (3)}) 11... b5 $19 {[%emt 0:05:14]} 12. f4 {[%emt 0:01:33] [#]} Qf5 {[%emt 0:00:14]} 13. Bd3 {[%emt 0:00:18]} Qd5 {[%emt 0:00:27][%cal Od5g2] Hoping for ...Qxg2!.} 14. Qe2 {[%emt 0:08:22]} bxa4 {[%emt 0:00:12]} 15. O-O {[%emt 0:00:05]} Bb7 {[%emt 0:02:07]} 16. Be3 {[%emt 0:00:07]} Qh5 {[%emt 0:06:44]} 17. Qd2 {[%emt 0:00:08]} Ng4 {[%emt 0:01:12][%csl Gg4][%cal Rh5h2] Black is clearly winning.} 18. h3 {[%emt 0:00:06]} Nxe3 {[%emt 0:00:07]} 19. Qxe3 {[%emt 0:00:03]} Qa5 {[%emt 0:07:02]} 20. Qg3 {[%emt 0:00:13]} g6 {[%emt 0:00:52]} 21. Rae1 {[%emt 0:00:18]} Ba6 {[%emt 0:02:05]} 22. Kh2 {[%emt 0:02:18]} Bxd3 {[%emt 0:00:24]} 23. Qxd3 {[%emt 0:00:09]} Rb8 {[%emt 0:02:52]} 24. Rd1 {[%emt 0:00:08]} d5 {[%emt 0:01:10]} ({Weaker is} 24... Rxb2 25. Qxd7+ Kf8 26. Qxc6 $17) 25. Rfe1 {[%emt 0:01:32]} Rxb2 {[%emt 0:01:55]} 26. f5 {[%emt 0:00:10]} gxf5 {[%emt 0:01:23]} 27. Qxf5 {[%emt 0:00:12]} Rg8 {[%emt 0:04:23] White did not feel at home in the position after the opening.   Weighted Error Value: White=0.86/Black=0.07 (flawless)   Loses game:     	White=1     	---        Mistake:       	White=2     	---        Inaccurate:     	White=2     	---        OK:         	White=3     	Black=13     Best:        	---       	Black=3} 0-1

[Event "SixDays Budapest January IM-B 2025"]
[Site "Budapest"]
[Date "2025.01.30"]
[Round "7.5"]
[White "Varga, Csaba Zoltan"]
[Black "Ongut, Tamas Gunes"]
[Result "1/2-1/2"]
[Annotator "TA"]
[ECO "A00"]
[WhiteElo "2198"]
[BlackElo "2262"]
[PlyCount "116"]
[EventDate "2025.01.24"]
[EventType "tourn"]
[EventCountry "HUN"]
[SourceTitle "playchess.com"]
[Source "ChessBase"]
[SourceQuality "1"]
[TimeControl "5400+30"]

{[%evp 9,116,-29,-14,-14,-14,-21,-12,-12,-10,-8,-13,-26,-19,-16,-16,-18,-14,-16,-24,-40,-18,-29,0,0,0,0,-2,0,0,0,0,-56,3,0,0,0,0,0,0,0,0,0,35,39,40,40,41,31,49,0,56,56,61,46,46,46,72,46,72,72,135,120,202,122,138,138,172,45,47,62,43,61,23,23,30,30,23,33,80,80,80,0,0,0,0,0,0,0,0,0,0,0,0,0,0,0,0,0,0,0,0,0,0,0,0,0,0,0,0]} 1. a4 {[%emt 0:00:06]} e5 {[%emt 0:11:23]} 2. e4 {[%emt 0:00:05]} Nf6 {[%emt 0:05:39]} 3. Nc3 {[%emt 0:00:06]} Bb4 {[%emt 0:01:45]} 4. Nf3 {[%emt 0:00:09][%cal Bg1f3,Bf3e5,Be5d3,Bd3f4][%mdl 32]} O-O {[%emt 0:01:03]} 5. Nxe5 {[%emt 0:00:08]} Re8 {[%emt 0:00:47]} 6. Nd3 {[%emt 0:00:22] A00: Irregular Openings.} Nxe4 {[%emt 0:00:11]} 7. Nxe4 $146 {[%emt 0:02:15][%cal Of2f3]} (7. Be2 Bf8 8. Nf4 c6 9. Nxe4 Rxe4 10. d3 {½-½ Rogers,J (2337)-Morris,C (2197) BCF-chT1d 0809 (4NCL) Demotion pool 2008 (10.3)}) 7... Rxe4+ {[%emt 0:00:09]} 8. Be2 {[%emt 0:00:05]} Bf8 {[%emt 0:04:13]} 9. O-O {[%emt 0:00:08]} d5 {[%emt 0:00:36]} 10. Bf3 {[%emt 0:00:10]} Re8 {[%emt 0:00:11]} 11. Nf4 {[%emt 0:01:14]} c6 {[%emt 0:04:30]} 12. d4 {[%emt 0:00:06]} a5 {[%emt 0:02:25]} 13. Be2 {[%emt 0:04:35]} Nd7 {[%emt 0:07:15]} 14. Bd3 {[%emt 0:10:56]} Nf6 {[%emt 0:00:41]} 15. Nh5 {[%emt 0:00:06]} Nxh5 {[%emt 0:00:22]} 16. Qxh5 {[%emt 0:00:05][%csl Gd3][%cal Rh5h7] [#]} g6 {[%emt 0:00:14] Successful Defense Black. The position is symmetric and equal} 17. Qg5 {[%emt 0:00:25]} Qxg5 {[%emt 0:03:42]} 18. Bxg5 {[%emt 0:00:04]} Bd6 {[%emt 0:10:04] Not much happening anymore} 19. Rfe1 {[%emt 0:00:25]} Bd7 {[%emt 0:00:09]} 20. Bf6 {[%emt 0:01:07]} ({White should try} 20. Rxe8+ $11 Rxe8 21. Bd2) 20... Bc7 {[%emt 0:00:14]} (20... Rxe1+ $1 $15 21. Rxe1 b5) 21. g3 {[%emt 0:03:06]} Rxe1+ {[%emt 0:01:18]} 22. Rxe1 {[%emt 0:00:07]} Re8 {[%emt 0:00:06]} 23. Rxe8+ {[%emt 0:01:20]} Bxe8 $11 {[%emt 0:00:08][%mdl 4096] Endgame KBB-KBB} 24. c3 {[%emt 0:02:08]} Bd7 {[%emt 0:01:24]} 25. f3 {[%emt 0:00:40]} Bf5 {[%emt 0:02:54]} 26. Bxf5 {[%emt 0:04:13]} gxf5 $14 {[%emt 0:00:06] KB-KB} 27. Kg2 {[%emt 0:03:00]} h5 {[%emt 0:00:15]} 28. Kf2 {[%emt 0:02:54]} Kh7 {[%emt 0:00:11]} 29. Be5 {[%emt 0:01:17]} (29. Be7 $14 {is more appropriate.}) 29... Bd8 {[%emt 0:00:09]} (29... Bxe5 $11 30. dxe5 f4) 30. Ke3 {[%emt 0:00:30]} Kg6 {[%emt 0:00:09]} 31. Kd3 {[%emt 0:00:58]} f6 {[%emt 0:04:26]} 32. Bb8 {[%emt 0:01:02]} Kf7 {[%emt 0:02:12]} 33. b3 {[%emt 0:04:50][%cal Bb2b3,Bb3c4][%mdl 32]} Ke6 {[%emt 0:00:42]} 34. c4 {[%emt 0:00:10]} dxc4+ {[%emt 0:01:50]} (34... Be7 $142) 35. bxc4 $16 {[%emt 0:00:14]} Be7 {[%emt 0:01:25]} (35... Kd7 $16) 36. Bf4 {[%emt 0:05:50]} Bb4 {[%emt 0:02:24] [#]} 37. Bd2 $1 {[%emt 0:01:31]} b6 {[%emt 0:00:22]} 38. Bxb4 {[%emt 0:02:42]} (38. Bf4 $18) 38... axb4 $18 {[%emt 0:00:07] KP-KP} 39. c5 $1 {[%emt 0:00:18]} bxc5 {[%emt 0:00:07]} 40. a5 $1 {[%emt 0:00:28][%cal Ba4a5,Ba5a6][%mdl 32]} Kd6 $1 {[%emt 0:02:01] and ...cxd4 should not be overlooked} 41. a6 {[%emt 0:00:07]} ({But not} 41. dxc5+ $2 Kxc5 42. a6 Kb6 $19) 41... Kc7 $1 {[%emt 0:00:05]} 42. dxc5 {[%emt 0:00:05]} Kb8 $1 {[%emt 0:00:06]} 43. Kc4 {[%emt 0:00:46]} Ka7 {[%emt 0:00:12]} 44. Kxb4 {[%emt 0:00:05]} Kxa6 {[%emt 0:00:11]} 45. h4 {[%emt 0:03:34]} (45. Kc3 $16 {h4 is the strong threat.} Kb5 46. Kd4) 45... f4 $1 $11 {[%emt 0:03:12] The position is equal.} 46. gxf4 {[%emt 0:01:30]} Kb7 $1 {[%emt 0:00:07]} 47. Kc4 {[%emt 0:00:58]} Kc7 {[%emt 0:00:07]} 48. Kc3 {[%emt 0:03:22]} Kc8 {[%emt 0:01:24]} 49. Kd3 {[%emt 0:01:12]} Kd7 {[%emt 0:00:08]} 50. Ke3 {[%emt 0:00:44]} Ke7 {[%emt 0:00:35]} 51. Kd4 {[%emt 0:00:21]} Kd7 {[%emt 0:00:09]} 52. Kc4 {[%emt 0:00:05]} Kc7 {[%emt 0:00:11]} 53. Kb4 {[%emt 0:00:05]} Kb7 {[%emt 0:00:06]} 54. Ka5 {[%emt 0:00:04]} Ka7 {[%emt 0:00:06]} 55. Kb4 {[%emt 0:00:05]} (55. f5 $5) 55... Kb7 {[%emt 0:00:06]} 56. Kc4 {[%emt 0:00:20]} Kc7 {[%emt 0:00:08]} 57. Kd4 {[%emt 0:00:04]} Kd7 {[%emt 0:00:06]} 58. Ke4 {[%emt 0:00:03] Kf5 would kill now.} Ke6 {[%emt 0:00:08] Weighted Error Value: White=0.13 (very precise) /Black=0.10 (very precise)   Mistake:       	White=4     	Black=4      Inaccurate:     	White=2     	Black=4      OK:         	White=14    	Black=21     Best:        	White=2     	Black=3      Strong:       	White=2     	Black=5} 1/2-1/2

[Event "SixDays Budapest January IM-B 2025"]
[Site "Budapest"]
[Date "2025.01.30"]
[Round "8.1"]
[White "Subramanian, Anusha"]
[Black "Ongut, Tamas Gunes"]
[Result "0-1"]
[Annotator "TA"]
[ECO "A05"]
[WhiteElo "2044"]
[BlackElo "2262"]
[PlyCount "134"]
[EventDate "2025.01.24"]
[EventType "tourn"]
[EventCountry "HUN"]
[SourceTitle "playchess.com"]
[Source "ChessBase"]
[SourceQuality "1"]
[TimeControl "5400+30"]

{[%evp 9,134,8,25,22,14,-2,25,12,6,9,9,4,31,25,39,27,35,25,46,40,55,0,15,0,0,0,19,-7,-18,-10,-14,-4,0,-9,-13,-53,-41,-91,-2,-3,-1,-7,0,-22,0,-27,-37,-68,-80,-74,-79,-62,-65,-124,-131,-156,-57,-76,-45,-82,-85,-163,-164,-196,-175,-228,-230,-287,-259,-305,-261,-326,-316,-265,-225,-433,-383,-615,-447,-611,-602,-552,-486,-5065,-2366,-29966,-29956,-29969,-29970,-29967,-29960,-29955,-29950,-6418,-6079,-29961,-1363,-29973,-29978,-29978,-29979,-29979,-29980,-29982,-29983,-29983,-29984,-29984,-29985,-29986,-29985,-29987,-29985,-29988,-29989,-29990,-29991,-29991,-29992,-29992,-29992,-29995,-29993,-29994,-29995,-29997,-29996]} 1. Nf3 {[%emt 0:00:03]} Nf6 {[%emt 0:20:12]} 2. b3 {[%emt 0:00:03]} d6 {[%emt 0:00:54]} 3. d4 {[%emt 0:00:07]} c5 {[%emt 0:00:28]} 4. e3 {[%emt 0:00:17]} g6 {[%emt 0:03:13]} 5. Bb2 {[%emt 0:00:47]} Bg7 {[%emt 0:00:08]} 6. dxc5 {[%emt 0:03:58] A46: 1 d4 Nf6 2 Nf3 e6: Torre, London and Colle Systems.} Qa5+ {[%emt 0:00:10]} 7. Nbd2 {[%emt 0:06:54]} Qxc5 {[%emt 0:00:11]} 8. Bd3 {[%emt 0:01:15] White has an edge.} O-O {[%emt 0:00:31]} 9. O-O {[%emt 0:00:23]} Nc6 {[%emt 0:05:17]} 10. a3 {[%emt 0:02:17]} e5 $146 {[%emt 0:04:12]} (10... Bg4 11. h3 Bxf3 12. Nxf3 Rac8 13. c4 Qb6 14. b4 Rfd8 15. Qe2 Nd7 16. Bxg7 Kxg7 17. Rfd1 Nde5 18. Nxe5 Nxe5 {½-½ Grabinsky,V (2219)-Costa,P (1974) Titled Tuesday intern op 23rd June blitz 2020 (10)}) 11. c4 {[%emt 0:03:03]} Qb6 {[%emt 0:03:16]} 12. Qc2 {[%emt 0:02:02]} h6 {[%emt 0:02:29]} 13. b4 {[%emt 0:01:48]} Be6 {[%emt 0:00:42]} 14. Rac1 {[%emt 0:03:30]} Nd7 {[%emt 0:02:18]} 15. Be4 {[%emt 0:04:56]} (15. Rfd1 $14) 15... a5 {[%emt 0:05:40]} 16. c5 {[%emt 0:05:05]} dxc5 {[%emt 0:00:33]} 17. bxc5 {[%emt 0:00:32]} Qa7 {[%emt 0:02:49]} 18. Bxc6 bxc6 {[%emt 0:00:49]} 19. Nc4 {[%emt 0:07:43]} Bxc4 {[%emt 0:09:32]} (19... Nxc5 20. Ncxe5 Nb3 21. Nxc6 $18) 20. Qxc4 {[%emt 0:00:15]} Rab8 {[%emt 0:00:07]} 21. Rc2 {[%emt 0:04:21]} Rb5 {[%emt 0:00:55]} 22. Qe4 {[%emt 0:01:23]} Qb7 {[%emt 0:00:16]} (22... Nxc5 23. Qxc6 Qd7 24. Qxd7 Nxd7 25. a4 $11) 23. Ba1 {[%emt 0:02:06]} ({White should play} 23. Bc3 $15) 23... Rxc5 {[%emt 0:01:56]} ({Black should try} 23... Nxc5 $17 24. Qc4 Nb3) 24. Rxc5 $11 {[%emt 0:02:53]} Nxc5 {[%emt 0:00:07]} 25. Qc2 {[%emt 0:00:13]} Nd7 {[%emt 0:01:04]} 26. Bc3 {[%emt 0:01:11]} Qb5 {[%emt 0:02:00]} 27. Rb1 {[%emt 0:05:35]} Qc5 {[%emt 0:00:27][%cal Oe5e4]} 28. Qd2 {[%emt 0:04:38]} Qxa3 {[%emt 0:13:16]} 29. Bxa5 {[%emt 0:00:59][%cal Oa5b4] and Bb4! should not be overlooked} Rb8 {[%emt 0:03:26]} 30. Rd1 {[%emt 0:07:54]} Rb7 {[%emt 0:02:43] Dodges Bc7} 31. h3 {[%emt 0:02:27]} (31. Bc3 $15) 31... Nc5 $36 {[%emt 0:00:57][%mdl 2048] Hoping for ...Rd7. Keeping White busy.} 32. Qc3 {[%emt 0:07:21] [#]} Qxc3 {[%emt 0:02:36]} (32... Rb3 $1 $17 {[%cal Rb3c3]} 33. Qa1 Qxa1 34. Rxa1 e4) 33. Bxc3 $15 {[%emt 0:00:27]} Rd7 {[%emt 0:00:14]} 34. Rxd7 {[%emt 0:01:17]} Nxd7 {[%emt 0:00:06][%mdl 4096] Endgame KBN-KBN. Black is a pawn up. Black continues to play with concentration.} 35. Kf1 {[%emt 0:00:52]} (35. Nd2 $17 {was worth a try.}) 35... e4 $19 {[%emt 0:00:33][%csl LRc3,LRf3]} 36. Nd4 {[%emt 0:01:51]} Bxd4 {[%emt 0:02:03]} 37. exd4 {[%emt 0:03:37] KB-KN. Black is a pawn up.} f5 {[%emt 0:00:20]} 38. g3 {[%emt 0:01:30]} Kf7 {[%emt 0:00:16]} 39. Bd2 {[%emt 0:01:56]} h5 {[%emt 0:00:22]} 40. Ke2 {[%emt 0:02:34]} Ke6 {[%emt 0:02:02]} 41. Bh6 {[%emt 0:02:05]} Nb6 {[%emt 0:01:05]} 42. Bg7 $2 {[%emt 0:01:55]} (42. Bg5) 42... Nc4 {[%emt 0:01:19]} 43. h4 $2 {[%emt 0:01:28]} (43. Ke1) 43... Kd5 {[%emt 0:00:20]} 44. Bf6 {[%emt 0:02:56] [#]} f4 $1 {[%emt 0:00:53][%mdl 512]} 45. gxf4 {[%emt 0:00:41]} Nd6 {[%emt 0:00:10]} 46. f3 {[%emt 0:01:19]} (46. Kd2 $142) 46... Nf5 {[%emt 0:00:11]} 47. fxe4+ Kxe4 {[%emt 0:00:09]} 48. Bg5 {[%emt 0:01:21]} Nxd4+ {[%emt 0:00:17]} 49. Kf2 {[%emt 0:00:28]} Ne6 {[%emt 0:00:16]} 50. Be7 {[%emt 0:00:16]} Kxf4 {[%emt 0:00:17]} 51. Bd6+ {[%emt 0:00:21]} Kg4 {[%emt 0:00:13][%cal Oe6g7] ( -> ...Ng7!)} 52. Be7 {[%emt 0:00:04]} Ng7 {[%emt 0:00:09]} (52... Nd4 $142 53. Bc5 Nf5 54. Ba7 Kxh4 (54... Nxh4 $2 55. Bc5 $19) 55. Bb6 Kh3 56. Ba5 g5 57. Kf3 h4 58. Bb6 g4+ 59. Ke4 Ng7 60. Kf4 Ne6+ 61. Kf5 g3 62. Kxe6 Kg4 63. Ke5 h3 64. Ke4 h2 65. Ke5 h1=Q (65... h1=R $2 66. Ke4 $19) 66. Kd6 Qd5+ 67. Ke7 c5 68. Bc7 Qb7 69. Kf6 Qxc7 70. Ke6 g2 71. Kd5 g1=Q (71... g1=R {is a self mate.} 72. Kc4 Rc1+ 73. Kd5 Qd7+ 74. Ke5 Re1+ 75. Kf6 Re6#) 72. Kc4 Qd4+ 73. Kb3 Qb6+ 74. Kc2 Qbb2#) 53. Kg2 {[%emt 0:00:28]} Nf5 {[%emt 0:00:10][%csl LRe7,LRh4] Black mates.} 54. Bc5 {[%emt 0:00:08]} Nxh4+ {[%emt 0:00:16]} 55. Kf2 {[%emt 0:00:11]} Nf5 {[%emt 0:00:11]} 56. Kg2 {[%emt 0:00:11]} g5 {[%emt 0:00:13]} 57. Kf2 {[%emt 0:00:09]} Kf4 {[%emt 0:00:23]} 58. Bb6 {[%emt 0:00:14]} g4 {[%emt 0:00:14]} 59. Ba7 {[%emt 0:00:23]} h4 {[%emt 0:00:12]} 60. Kg2 {[%emt 0:00:05]} g3 {[%emt 0:00:21]} 61. Bb8+ {[%emt 0:00:20]} Kg4 {[%emt 0:00:35]} 62. Bc7 {[%emt 0:00:23]} h3+ {[%emt 0:00:11]} 63. Kg1 {[%emt 0:00:20]} c5 {[%emt 0:00:50]} 64. Be5 {[%emt 0:00:16]} c4 {[%emt 0:00:09]} 65. Bc3 {[%emt 0:00:15]} Kf3 {[%emt 0:00:11]} 66. Be1 {[%emt 0:00:24]} Ne3 {[%emt 0:00:18]} 67. Bd2 {[#]} Nf1 $1 {[%emt 0:00:33] Weighted Error Value: White=0.63/Black=0.20 (precise)   Mistake:       	White=6     	Black=2      Inaccurate:     	White=8     	Black=3      OK:         	White=8     	Black=15     Best:        	White=1     	Black=2} 0-1

[Event "SixDays Budapest January IM-B 2025"]
[Site "Budapest"]
[Date "2025.01.30"]
[Round "8.2"]
[White "Krizsany, Laszlo"]
[Black "Varga, Csaba Zoltan"]
[Result "0-1"]
[Annotator "TA"]
[ECO "B07"]
[WhiteElo "2303"]
[BlackElo "2198"]
[PlyCount "96"]
[EventDate "2025.01.24"]
[EventType "tourn"]
[EventCountry "HUN"]
[SourceTitle "playchess.com"]
[Source "ChessBase"]
[SourceQuality "1"]
[TimeControl "5400+30"]

{[%evp 15,96,42,59,24,29,3,0,0,3,0,20,-17,-23,-20,-26,-22,-20,-27,-22,-26,-26,-51,-51,-37,-32,-41,-16,-16,-22,-21,-2,0,0,0,-8,-5,62,-57,-58,-57,-57,-70,-44,-27,-14,-12,34,32,43,-42,-9,-27,-41,-52,-5,-101,-105,-110,-60,-140,-143,-127,-64,-62,-54,-54,-49,-48,-57,-382,-382,-382,-382,-382,-382,-686,-287,-29982,-29964,-29983,-29984,-29993,-29994]} 1. d4 {[%emt 0:00:04]} d6 {[%emt 0:05:01]} 2. e4 {[%emt 0:00:34]} Nf6 {[%emt 0:01:00]} 3. Nc3 {[%emt 0:00:29]} e5 {[%emt 0:00:06]} 4. dxe5 {[%emt 0:00:48]} dxe5 {[%emt 0:00:04]} 5. Qxd8+ {[%emt 0:00:18]} Kxd8 {[%emt 0:00:01]} 6. Bc4 {[%emt 0:01:05]} Ke8 {[%emt 0:00:04]} 7. Nf3 {[%emt 0:05:50]} Bd6 {[%emt 0:00:12]} 8. Bg5 {[%emt 0:04:59]} Nbd7 {[%emt 0:00:03]} 9. O-O-O {[%emt 0:05:37] B07: Pirc Defence: Miscellaneous Systems.} a6 {[%emt 0:00:10]} 10. Rhe1 {[%emt 0:06:42]} b5 {[%emt 0:09:57]} 11. Bb3 {[%emt 0:08:42] The position is equal.} h6 {[%emt 0:02:43]} 12. Bh4 {[%emt 0:10:04]} Bb7 {[%emt 0:05:13]} 13. Nd5 {[%emt 0:06:40]} Nxd5 {[%emt 0:02:27]} 14. Bxd5 {[%emt 0:00:08]} Bxd5 {[%emt 0:00:18]} 15. Rxd5 {[%emt 0:05:34]} f6 {[%emt 0:02:24]} 16. Bg3 $146 {[%emt 0:04:27]} (16. Nd2) 16... h5 {[%emt 0:01:49]} 17. h3 {[%emt 0:06:00]} Kf7 {[%emt 0:02:52]} 18. c3 {[%emt 0:00:46]} Rad8 {[%emt 0:03:19]} 19. Kc2 {[%emt 0:00:59]} Nb6 {[%emt 0:01:25]} 20. Rd3 {[%emt 0:01:43]} a5 {[%emt 0:01:11]} 21. Red1 {[%emt 0:03:20]} a4 {[%emt 0:01:40]} 22. Nh4 {[%emt 0:09:12][%cal Of2f4]} g6 {[%emt 0:10:26]} 23. f4 {[%emt 0:00:07]} exf4 {[%emt 0:01:39]} 24. Bxf4 {[%emt 0:00:11]} Nc4 {[%emt 0:03:28]} 25. b3 {[%emt 0:03:10] [#]} (25. Bxd6 {simplifies} Rxd6 26. Rxd6 Nxd6 27. Rd5) 25... Bxf4 {[%emt 0:02:21]} 26. bxc4 {[%emt 0:06:49]} (26. Rxd8 $14 Ne3+ 27. Kb1 Nxd1 28. Rxh8 axb3 29. axb3) 26... Rxd3 $15 {[%emt 0:00:15]} 27. Rxd3 {[%emt 0:00:03]} bxc4 $11 {[%emt 0:00:45][%mdl 4096] Endgame KRB-KRN. Black is a pawn up.} 28. Rd7+ {[%emt 0:01:20]} Ke6 {[%emt 0:00:22]} 29. Rd4 {[%emt 0:00:18]} g5 {[%emt 0:08:33]} 30. Nf5 {[%emt 0:00:08]} c5 {[%emt 0:04:14]} (30... a3 $11 31. Rxc4 h4) 31. Rxc4 $14 {[%emt 0:03:19]} Rd8 {[%emt 0:00:40]} 32. g3 {[%emt 0:00:12]} (32. Rxa4 $14 Rd2+ 33. Kb3 c4+ (33... Rxg2 34. Ra7 $14) 34. Rxc4 (34. Kxc4 Ke5 $11)) 32... Rd2+ $15 {[%emt 0:00:29]} 33. Kb1 {[%emt 0:00:04]} Be5 {[%emt 0:04:28]} 34. Rxc5 {[%emt 0:00:42]} a3 {[%emt 0:01:45]} (34... Rg2 $15 {is superior.}) 35. Rc6+ {[%emt 0:00:25]} (35. Ra5 $11 {remains equal.}) 35... Kd7 $17 {[%emt 0:00:27] Black is much more active.} 36. Rb6 {[%emt 0:01:42] Dodges Rb2+} Bxc3 {[%emt 0:00:48]} (36... Rh2 $17 37. Rb7+ Kc6) 37. Rb3 {[%emt 0:00:05]} (37. Ng7 $15) 37... Bb2 {[%emt 0:00:24]} 38. Ng7 {[%emt 0:01:23]} Kc6 {[%emt 0:02:22]} ({Better is} 38... Rh2 $17 39. Nxh5 Rxh3) 39. Nxh5 $15 {[%emt 0:00:35]} Kc5 {[%emt 0:00:22]} 40. Rf3 {[%emt 0:01:12]} Kc4 {[%emt 0:00:20][%cal Of6f5]} 41. Nxf6 {[%emt 0:02:48]} Bd4 {[%emt 0:04:14]} 42. Rxa3 $2 {[%emt 0:02:03][%mdl 8192] This costs White the game.} Bxf6 {[%emt 0:00:12] KRB-KR} 43. Rf3 {[%emt 0:00:26]} Bd4 {[%emt 0:01:49]} 44. e5 {[%emt 0:00:54]} Bxe5 {[%emt 0:00:26]} 45. Rf5 $2 {[%emt 0:00:23] [#]} (45. a4) 45... Kc3 {[%emt 0:00:38]} 46. a4 $2 {[%emt 0:00:30]} (46. Rf3+ $19 Kc4 47. g4) 46... Rd1+ {[%emt 0:01:48] Black mates.} 47. Ka2 {[%emt 0:00:02]} Bd4 {[%emt 0:00:17]} 48. a5 {[%emt 0:00:34]} Kc4 {[%emt 0:00:17] Weighted Error Value: White=0.57/Black=0.22 (precise)   Loses game:     	White=1     	---        Mistake:       	White=6     	Black=6      Inaccurate:     	White=2     	---        OK:         	White=14    	Black=13     Best:        	White=3     	Black=7} 0-1